fUSD/lending_fUSD_20260130
["ID","MTS","AMOUNT","RATE_DAILY","PERIOD"]
[404082681,1769797832426,-500.0,0.00015675,2]
[404082682,1769797832435,-150.0,0.00015675,2]
[404082683,1769797832444,-150.0,0.00015675,2]
[404082684,1769797832454,-1853.00715091,0.00015709,2]
[404082685,1769797832464,-772.81,0.00015715,2]
[404082686,1769797832474,-2774.55441735,0.00015719,2]
[404082687,1769797832488,-1147.46038246,0.00015719,2]
[404082688,1769797832500,-6174.63262265,0.00015719,2]
[404082689,1769797832511,-12917.03997643,0.00015719,2]
[404082690,1769797832521,-19323.11928732,0.00015719,2]
[404082691,1769797832530,-26144.8605,0.00015719,2]
[404082693,1769797832540,-500.0,0.00015729,2]
[404082695,1769797832550,-500.0,0.00015729,2]
[404082697,1769797832560,-500.0,0.00015729,2]
[404082699,1769797832570,-250.0,0.00015729,2]
[404082700,1769797832579,-200.0,0.00015729,2]
[404082702,1769797832589,-414.05,0.00015741,2]
[404082703,1769797832599,-12562.08924235,0.00015763,2]
[404082704,1769797832609,-500.0,0.00015784,2]
[404082705,1769797832619,-500.0,0.00015784,2]
[404082706,1769797832630,-500.0,0.00015784,2]
[404082707,1769797832640,-433.0,0.00015794,2]
[404082708,1769797832649,-500.0,0.00015839,2]
[404082709,1769797832659,-500.0,0.00015839,2]
[404082710,1769797832668,-500.0,0.00015839,2]
[404082711,1769797832678,-915.8,0.00015839,2]
[404082712,1769797832687,-1600.0,0.00015848,2]
[404082713,1769797832697,-4612.24,0.00015848,2]
[404082714,1769797832707,-500.0,0.00015894,2]
[404082715,1769797832716,-500.0,0.00015894,2]
[404082716,1769797832727,-500.0,0.00015894,2]
[404082717,1769797832736,-17403.25469915,0.00015903,2]
[404082718,1769797832746,-819.30544934,0.00015908,2]
[404082719,1769797832755,-711.36,0.00015925,2]
[404082720,1769797832765,-685.91545255,0.00015926,2]
[404082721,1769797832777,-314.08454745,0.00015926,2]
[404082722,1769797832786,-179.11725287,0.00015949,2]
[404082723,1769797832796,-500.0,0.00015949,2]
[404082724,1769797832805,-500.0,0.00015949,2]
[404082725,1769797832819,-333.71984756,0.0001596,2]
[404082726,1769797832834,-319.27869477,0.0001596,2]
[404082727,1769797832843,-259.44,0.00015963,2]
[404082728,1769797832853,-772.81,0.00015989,2]
[404082729,1769797832863,-223.6899003,0.00016,2]
[404082730,1769797832874,-2242.16787944,0.00016,4]
[404082731,1769797832891,-2423.67296601,0.00016,4]
[404082732,1769797832902,-265.0,0.00016,4]
[404082733,1769797832914,-9652.00722466,0.00016,4]
[404082734,1769797832924,-503.21044542,0.00016,4]
[404082740,1769797837520,-141722.26638484,0.00016,4]
[404082741,1769797837530,-500.0,0.00016003,2]
[404082742,1769797837540,-500.0,0.00016003,2]
[404082743,1769797837550,-516.5638223,0.00016056,2]
[404082744,1769797837560,-500.0,0.00016058,2]
[404082745,1769797837570,-500.0,0.00016058,2]
[404082746,1769797837579,-12562.08924235,0.00016069,2]
[404082747,1769797837589,-500.0,0.00016099,2]
[404082748,1769797837598,-189.75735068,0.00016113,2]
[404082749,1769797837608,-500.0,0.00016113,2]
[404082750,1769797837617,-3404.72,0.00016116,2]
[404082751,1769797837626,-2816.2555549,0.00016125,2]
[404082752,1769797837637,-254.18043806,0.00016125,2]
[404082753,1769797837655,-793.66649967,0.00016125,2]
[404082754,1769797837667,-446.26987052,0.00016125,2]
[404082755,1769797837678,-261.039,0.00016125,2]
[404082756,1769797837689,-735.59830712,0.00016125,2]
[404082757,1769797837700,-10201.87555268,0.00016125,2]
[404082758,1769797837711,-1518.02316268,0.00016125,2]
[404082759,1769797837722,-376.34631347,0.00016125,2]
[404082760,1769797837735,-500.0,0.00016154,2]
[404082761,1769797837744,-460.7871689,0.00016168,2]
[404082762,1769797837762,-39.2128311,0.00016168,2]
[404082763,1769797837771,-587.0,0.00016178,2]
[404082764,1769797837781,-713.98681171,0.000162,5]
[404082811,1769797839557,-285.2937052,0.000162,5]
[404082812,1769797841981,-4000.72058191,0.000162,5]
[404082813,1769797841990,-500.0,0.00016209,2]
[404082814,1769797842001,-567.0,0.00016223,2]
[404082815,1769797842010,-298.4383804,0.00016244,2]
[404082816,1769797842019,-401.81123558,0.00016244,2]
[404082817,1769797842029,-772.81,0.00016263,2]
[404082818,1769797842037,-500.0,0.00016263,2]
[404082819,1769797842046,-2351.0,0.00016292,2]
[404082820,1769797842055,-500.0,0.00016318,2]
[404082821,1769797842064,-17403.2546991,0.00016347,2]
[404082822,1769797842072,-500.0,0.00016373,2]
[404082823,1769797842081,-177.64323639,0.00016373,2]
[404082824,1769797842090,-500.0,0.00016373,2]
[404082825,1769797842099,-160.21744138,0.00016373,2]
[404082826,1769797842109,-500.0,0.00016373,2]
[404082827,1769797842118,-500.0,0.00016373,2]
[404082828,1769797842127,-225.37911043,0.00016373,2]
[404082829,1769797842137,-500.0,0.00016373,2]
[404082830,1769797842146,-500.0,0.00016373,2]
[404082831,1769797842155,-160.21943413,0.00016373,2]
[404082832,1769797842172,-500.0,0.00016373,2]
[404082833,1769797842184,-160.32431704,0.00016373,2]
[404082834,1769797842193,-500.0,0.00016373,2]
[404082835,1769797842203,-500.0,0.00016373,2]
[404082836,1769797842212,-500.0,0.00016373,2]
[404082837,1769797842222,-500.0,0.00016373,2]
[404082838,1769797842232,-217.57575976,0.00016373,2]
[404082839,1769797842242,-500.0,0.00016373,2]
[404082840,1769797842252,-500.0,0.00016373,2]
[404082842,1769797842261,-500.0,0.00016373,2]
[404082844,1769797842270,-503.15498018,0.00016373,2]
[404082846,1769797842279,-500.0,0.00016373,2]
[404082848,1769797842289,-169.60462217,0.00016373,2]
[404082850,1769797842298,-500.0,0.00016373,2]
[404082852,1769797842307,-500.0,0.00016373,2]
[404082854,1769797842316,-500.0,0.00016373,2]
[404082856,1769797842326,-500.0,0.00016373,2]
[404082858,1769797842335,-239.55126374,0.00016373,2]
[404082859,1769797842344,-166.21493216,0.00016373,2]
[404082861,1769797842354,-500.0,0.00016373,2]
[404082863,1769797842363,-500.0,0.00016373,2]
[404082864,1769797842373,-500.0,0.00016373,2]
[404082865,1769797842382,-500.0,0.00016373,2]
[404082866,1769797842392,-500.0,0.00016373,2]
[404082867,1769797842402,-500.0,0.00016373,2]
[404082868,1769797842412,-500.0,0.00016373,2]
[404082869,1769797842422,-500.0,0.00016373,2]
[404082870,1769797842431,-163.00594696,0.00016373,2]
[404082871,1769797842441,-500.0,0.00016373,2]
[404082872,1769797842451,-500.0,0.00016373,2]
[404082873,1769797842461,-500.0,0.00016373,2]
[404082874,1769797842471,-404.25101827,0.00016373,2]
[404082875,1769797842483,-12562.08924235,0.00016374,2]
[404082876,1769797842492,-163.0,0.000164,2]
[404082877,1769797842502,-500.0,0.00016521,2]
[404082878,1769797842512,-1000.0,0.00016523,2]
[404082880,1769797842522,-212.59,0.00016527,2]
[404082882,1769797842532,-772.81,0.00016537,2]
[404082885,1769797842542,-17403.2546991,0.00016569,2]
[404082888,1769797842551,-168.0,0.00016658,2]
[404082891,1769797842560,-868.51,0.00016677,2]
[404082894,1769797842570,-12562.08924235,0.00016679,2]
[404082895,1769797842579,-165.61,0.00016712,2]
[404082896,1769797842589,-17403.2546991,0.00016791,2]
[404082898,1769797842598,-772.81,0.00016811,2]
[404082900,1769797842608,-203.98074386,0.00016921,2]
[404082901,1769797842618,-1000.0,0.00016921,2]
[404082902,1769797842628,-1000.0,0.00016921,2]
[404082903,1769797842638,-1000.0,0.00016921,2]
[404082904,1769797842648,-770.71912409,0.00016921,2]
[404082905,1769797842659,-1000.0,0.00016921,2]
[404082906,1769797842671,-1000.0,0.00016921,2]
[404082907,1769797842682,-1000.0,0.00016921,2]
[404082908,1769797842692,-1000.0,0.00016921,2]
[404082909,1769797842700,-1000.0,0.00016921,2]
[404082910,1769797842708,-1009.36195064,0.00016921,2]
[404082911,1769797842718,-500.60369246,0.00016921,2]
[404082912,1769797842736,-1000.0,0.00016921,2]
[404082913,1769797842747,-401.53067419,0.00016921,2]
[404082914,1769797842757,-459.6118856,0.00016921,2]
[404082915,1769797842766,-1000.0,0.00016921,2]
[404082916,1769797842776,-877.26188408,0.00016921,2]
[404082917,1769797842786,-1000.0,0.00016921,2]
[404082918,1769797842796,-1000.0,0.00016921,2]
[404082919,1769797842805,-490.28446551,0.00016921,2]
[404082920,1769797842820,-1000.0,0.00016921,2]
[404082921,1769797842829,-1000.0,0.00016921,2]
[404082922,1769797842838,-1000.0,0.00016921,2]
[404082923,1769797842847,-1000.0,0.00016921,2]
[404082924,1769797842860,-1000.0,0.00016921,2]
[404082925,1769797842870,-1000.0,0.00016921,2]
[404082926,1769797842878,-500.0,0.00016921,2]
[404082927,1769797842889,-1000.28855452,0.00016921,2]
[404082928,1769797842899,-804.05633745,0.00016921,2]
[404082929,1769797842909,-200.0,0.00016929,2]
[404082930,1769797842919,-868.51,0.00016951,2]
[404082931,1769797842930,-12562.08924235,0.00016984,2]
[404082932,1769797842940,-250.0,0.00017,2]
[404082933,1769797842950,-16166.05353687,0.00017,2]
[404082934,1769797842960,-2387.52939455,0.00017,2]
[404082935,1769797842970,-17403.2546991,0.00017012,2]
[404082936,1769797842979,-772.81,0.00017085,2]
[404082937,1769797842991,-322.6107,0.00017097,2]
[404082938,1769797843002,-174.61919141,0.00017097,2]
[404082939,1769797843011,-151.0,0.00017097,2]
[404082940,1769797843021,-156.587,0.00017097,2]
[404082941,1769797843030,-250.0,0.00017097,2]
[404082942,1769797843040,-162.380719,0.00017097,2]
[404082943,1769797843050,-157.32475157,0.00017097,2]
[404082944,1769797843059,-578.20924308,0.00017097,2]
[404082945,1769797843069,-854.2589148,0.00017097,2]
[404082946,1769797843079,-209.40437684,0.00017097,2]
[404082947,1769797843088,-736.0,0.000171,2]
[404082948,1769797843098,-1000.0,0.0001712,2]
[404082949,1769797843108,-217.15233878,0.00017152,2]
[404082950,1769797843119,-250.0,0.00017177,2]
[404082951,1769797843132,-225.18697532,0.00017207,2]
[404082952,1769797843143,-868.51,0.00017225,2]
[404082953,1769797843152,-17403.2546991,0.00017234,2]
[404082954,1769797843162,-233.51889341,0.00017262,2]
[404082955,1769797843171,-12562.08924235,0.0001729,2]
[404082956,1769797843181,-242.15909246,0.00017317,2]
[404082957,1769797843191,-772.81,0.00017359,2]
[404082958,1769797843200,-2833.0,0.0001736,2]
[404082959,1769797843210,-2828.0,0.0001736,2]
[404082960,1769797843220,-1898.85844425,0.00017365,2]
[404082961,1769797843233,-251.11897888,0.00017372,2]
[404082962,1769797843243,-1000.0,0.00017383,2]
[404082963,1769797843254,-260.4103811,0.00017427,2]
[404082964,1769797843265,-17403.2546991,0.00017456,2]
[404082965,1769797843275,-1500.0,0.00017468,2]
[404082966,1769797843285,-1500.0,0.00017468,2]
[404082967,1769797843294,-1360.17062538,0.00017468,2]
[404082968,1769797843304,-1500.0,0.00017468,2]
[404082969,1769797843314,-1500.0,0.00017468,2]
[404082970,1769797843324,-500.86269689,0.00017468,2]
[404082971,1769797843334,-1500.0,0.00017468,2]
[404082972,1769797843343,-1500.0,0.00017468,2]
[404082973,1769797843353,-1508.66573499,0.00017468,2]
[404082974,1769797843363,-206.11887871,0.00017468,2]
[404082975,1769797843373,-1613.81806741,0.00017468,2]
[404082976,1769797843382,-500.0,0.00017468,2]
[404082977,1769797843392,-656.65111135,0.00017468,2]
[404082978,1769797843402,-1500.0,0.00017468,2]
[404082979,1769797843412,-1500.0,0.00017468,2]
[404082980,1769797843422,-1500.0,0.00017468,2]
[404082981,1769797843432,-421.02044444,0.00017468,2]
[404082982,1769797843442,-270.0455652,0.00017482,2]
[404082983,1769797843451,-868.51,0.00017499,2]
[404082984,1769797843462,-158.82094085,0.00017518,2]
[404082985,1769797843471,-280.03725112,0.00017537,2]
[404082986,1769797843481,-2193.0,0.00017569,2]
[404082987,1769797843492,-5596.0,0.00017575,2]
[404082988,1769797843502,-290.39862941,0.00017592,2]
[404082989,1769797843511,-12562.08924235,0.00017595,2]
[404082990,1769797843521,-5596.0,0.0001761,2]
[404082991,1769797843534,-151.0,0.0001761,2]
[404082992,1769797843544,-500.0,0.00017613,2]
[404082994,1769797843554,-481.27233715,0.00017613,2]
[404082996,1769797843563,-500.0,0.00017613,2]
[404082997,1769797843572,-500.0,0.00017613,2]
[404082999,1769797843581,-500.0,0.00017613,2]
[404083002,1769797843592,-500.0,0.00017613,2]
[404083004,1769797843602,-167.06696304,0.00017613,2]
[404083006,1769797843611,-500.0,0.00017613,2]
[404083008,1769797843620,-423.62190876,0.00017613,2]
[404083009,1769797843629,-254.10007489,0.00017613,2]
[404083010,1769797843639,-500.0,0.00017613,2]
[404083011,1769797843648,-500.0,0.00017613,2]
[404083012,1769797843658,-500.0,0.00017613,2]
[404083013,1769797843667,-500.0,0.00017613,2]
[404083014,1769797843677,-500.0,0.00017613,2]
[404083015,1769797843686,-500.0,0.00017613,2]
[404083016,1769797843696,-500.0,0.00017613,2]
[404083017,1769797843705,-500.0,0.00017613,2]
[404083018,1769797843715,-500.0,0.00017613,2]
[404083019,1769797843724,-500.0,0.00017613,2]
[404083020,1769797843736,-500.0,0.00017613,2]
[404083021,1769797843745,-500.0,0.00017613,2]
[404083022,1769797843755,-500.0,0.00017613,2]
[404083023,1769797843764,-500.0,0.00017613,2]
[404083026,1769797843775,-500.0,0.00017613,2]
[404083027,1769797843785,-595.49983408,0.00017613,2]
[404083029,1769797843796,-500.0,0.00017613,2]
[404083030,1769797843805,-500.0,0.00017613,2]
[404083031,1769797843816,-500.0,0.00017613,2]
[404083032,1769797843829,-500.0,0.00017613,2]
[404083033,1769797843838,-500.0,0.00017613,2]
[404083034,1769797843847,-500.0,0.00017613,2]
[404083035,1769797843856,-500.0,0.00017613,2]
[404083037,1769797843866,-500.0,0.00017613,2]
[404083040,1769797843876,-500.0,0.00017613,2]
[404083042,1769797843885,-500.0,0.00017613,2]
[404083044,1769797843896,-500.0,0.00017613,2]
[404083046,1769797843906,-500.0,0.00017613,2]
[404083048,1769797843915,-500.0,0.00017613,2]
[404083049,1769797843928,-500.0,0.00017613,2]
[404083050,1769797843937,-500.0,0.00017613,2]
[404083051,1769797843946,-500.0,0.00017613,2]
[404083052,1769797843955,-500.0,0.00017613,2]
[404083053,1769797843966,-500.0,0.00017613,2]
[404083054,1769797843974,-500.0,0.00017613,2]
[404083055,1769797843984,-500.0,0.00017613,2]
[404083056,1769797843992,-500.0,0.00017613,2]
[404083057,1769797844001,-500.0,0.00017613,2]
[404083058,1769797844010,-500.0,0.00017613,2]
[404083059,1769797844018,-500.0,0.00017613,2]
[404083060,1769797844027,-500.0,0.00017613,2]
[404083061,1769797844035,-500.0,0.00017613,2]
[404083062,1769797844044,-500.0,0.00017613,2]
[404083063,1769797844053,-500.0,0.00017613,2]
[404083064,1769797844062,-500.0,0.00017613,2]
[404083065,1769797844072,-500.0,0.00017613,2]
[404083066,1769797844081,-500.0,0.00017613,2]
[404083067,1769797844091,-500.0,0.00017613,2]
[404083068,1769797844101,-500.0,0.00017613,2]
[404083069,1769797844110,-500.0,0.00017613,2]
[404083070,1769797844120,-500.0,0.00017613,2]
[404083071,1769797844130,-500.0,0.00017613,2]
[404083072,1769797844140,-500.0,0.00017613,2]
[404083073,1769797844149,-500.0,0.00017613,2]
[404083074,1769797844159,-500.0,0.00017613,2]
[404083075,1769797844170,-500.0,0.00017613,2]
[404083076,1769797844180,-500.0,0.00017613,2]
[404083077,1769797844191,-500.0,0.00017613,2]
[404083078,1769797844200,-500.0,0.00017613,2]
[404083079,1769797844208,-500.0,0.00017613,2]
[404083080,1769797844216,-500.0,0.00017613,2]
[404083081,1769797844224,-500.0,0.00017613,2]
[404083082,1769797844233,-500.0,0.00017613,2]
[404083083,1769797844242,-500.0,0.00017613,2]
[404083084,1769797844250,-500.0,0.00017613,2]
[404083085,1769797844258,-500.0,0.00017613,2]
[404083086,1769797844266,-266.09803822,0.00017613,2]
[404083087,1769797844275,-500.0,0.00017613,2]
[404083088,1769797844283,-500.0,0.00017613,2]
[404083089,1769797844293,-500.0,0.00017613,2]
[404083090,1769797844302,-500.0,0.00017613,2]
[404083091,1769797844313,-500.0,0.00017613,2]
[404083092,1769797844322,-500.0,0.00017613,2]
[404083093,1769797844335,-500.0,0.00017613,2]
[404083094,1769797844345,-500.0,0.00017613,2]
[404083095,1769797844354,-500.0,0.00017613,2]
[404083096,1769797844363,-500.0,0.00017613,2]
[404083097,1769797844373,-500.0,0.00017613,2]
[404083098,1769797844382,-500.0,0.00017613,2]
[404083099,1769797844391,-500.0,0.00017613,2]
[404083100,1769797844400,-500.0,0.00017613,2]
[404083101,1769797844409,-500.0,0.00017613,2]
[404083102,1769797844419,-500.0,0.00017613,2]
[404083103,1769797844429,-500.0,0.00017613,2]
[404083104,1769797844439,-500.0,0.00017613,2]
[404083105,1769797844448,-500.0,0.00017613,2]
[404083106,1769797844457,-500.0,0.00017613,2]
[404083107,1769797844467,-403.24240059,0.00017613,2]
[404083108,1769797844476,-300.0,0.00017613,2]
[404083109,1769797844487,-500.0,0.00017613,2]
[404083110,1769797844497,-500.0,0.00017613,2]
[404083111,1769797844507,-500.0,0.00017613,2]
[404083112,1769797844516,-500.0,0.00017613,2]
[404083113,1769797844525,-500.0,0.00017613,2]
[404083114,1769797844535,-500.0,0.00017613,2]
[404083115,1769797844544,-500.0,0.00017613,2]
[404083116,1769797844554,-500.0,0.00017613,2]
[404083117,1769797844564,-500.0,0.00017613,2]
[404083118,1769797844573,-500.0,0.00017613,2]
[404083119,1769797844583,-398.30593088,0.00017613,2]
[404083120,1769797844594,-500.0,0.00017613,2]
[404083121,1769797844603,-500.0,0.00017613,2]
[404083122,1769797844613,-500.0,0.00017613,2]
[404083123,1769797844622,-500.0,0.00017613,2]
[404083124,1769797844633,-487.44371786,0.00017613,2]
[404083125,1769797844644,-1091.17224564,0.00017614,2]
[404083126,1769797844654,-1025.31468825,0.00017614,2]
[404083127,1769797844665,-1115.0568112,0.00017614,2]
[404083128,1769797844674,-1003.36086287,0.00017614,2]
[404083129,1769797844684,-1100.20950693,0.00017614,2]
[404083130,1769797844697,-1080.71151841,0.00017614,2]
[404083131,1769797844707,-1112.10397832,0.00017614,2]
[404083132,1769797844716,-1022.83021812,0.00017614,2]
[404083133,1769797844726,-1115.27100916,0.00017614,2]
[404083134,1769797844737,-1113.30697752,0.00017614,2]
[404083135,1769797844746,-1114.31143754,0.00017614,2]
[404083136,1769797844755,-1045.98805045,0.00017614,2]
[404083137,1769797844765,-1042.10718974,0.00017614,2]
[404083138,1769797844774,-1144.40877133,0.00017614,2]
[404083139,1769797844784,-1016.02725801,0.00017614,2]
[404083140,1769797844794,-1068.73463296,0.00017614,2]
[404083141,1769797844803,-1040.24318252,0.00017614,2]
[404083142,1769797844813,-1011.99498376,0.00017614,2]
[404083143,1769797844826,-1105.08987811,0.00017614,2]
[404083144,1769797844836,-1087.01159504,0.00017614,2]
[404083145,1769797844845,-1095.13708302,0.00017614,2]
[404083146,1769797844855,-1055.79151869,0.00017614,2]
[404083147,1769797844866,-1111.59002663,0.00017614,2]
[404083148,1769797844875,-1147.22397525,0.00017614,2]
[404083149,1769797844885,-1051.30987549,0.00017614,2]
[404083150,1769797844895,-1036.88315464,0.00017614,2]
[404083151,1769797844903,-1121.29134926,0.00017614,2]
[404083152,1769797844913,-1145.55381066,0.00017614,2]
[404083153,1769797844922,-1024.9407285,0.00017614,2]
[404083154,1769797844931,-1040.29856413,0.00017614,2]
[404083155,1769797844941,-1053.86181262,0.00017614,2]
[404083156,1769797844950,-1133.82352808,0.00017614,2]
[404083157,1769797844959,-1084.62073976,0.00017614,2]
[404083158,1769797844969,-2833.0,0.00017623,2]
[404083159,1769797844979,-714.44,0.00017633,2]
[404083160,1769797844990,-1829.17898656,0.0001764,2]
[404083161,1769797845000,-181.08010149,0.00017645,2]
[404083162,1769797845011,-885.86649465,0.00017645,2]
[404083163,1769797845020,-301.1433787,0.00017647,2]
[404083164,1769797845030,-1000.0,0.00017657,2]
[404083165,1769797845040,-17403.2546991,0.00017678,2]
[404083166,1769797845050,-2193.0,0.00017683,2]
[404083167,1769797845061,-4045.90232447,0.00017708,2]
[404083168,1769797845071,-286.0,0.00017715,2]
[404083169,1769797845082,-1000.0,0.00017718,2]
[404083170,1769797845092,-823.0,0.00017734,2]
[404083171,1769797845102,-4045.90232445,0.0001775,2]
[404083172,1769797845113,-35744.0,0.0001775,2]
[404083173,1769797845268,-5596.0,0.00017753,2]
[404083176,1769797845327,-868.51,0.00017773,2]
[404083178,1769797845337,-25000.0,0.00017777,3]
[404083180,1769797845346,-25000.0,0.00017786,3]
[404083182,1769797845356,-2193.0,0.0001779,2]
[404083184,1769797845366,-4045.90232445,0.00017791,2]
[404083186,1769797845375,-2653.303,0.00017794,2]
[404083187,1769797845385,-273.517,0.00017794,2]
[404083188,1769797845395,-25000.0,0.00017794,3]
[404083189,1769797845406,-212.59,0.00017798,2]
[404083190,1769797845416,-500.0,0.00017799,2]
[404083191,1769797845426,-500.0,0.00017799,2]
[404083192,1769797845435,-500.0,0.00017799,2]
[404083193,1769797845445,-5596.0,0.00017801,2]
[404083194,1769797845455,-25000.0,0.00017803,3]
[404083195,1769797845464,-500.0,0.00017808,2]
[404083196,1769797845476,-522.84,0.00017809,2]
[404083198,1769797845487,-25000.0,0.00017812,3]
[404083199,1769797845496,-1459.48,0.00017815,2]
[404083200,1769797845506,-303.78,0.00017819,2]
[404083201,1769797845516,-153.53,0.0001782,2]
[404083202,1769797845525,-462.92596085,0.0001782,2]
[404083204,1769797845535,-1000.0,0.0001782,2]
[404083205,1769797845544,-583.855,0.0001782,2]
[404083206,1769797845554,-25000.0,0.00017821,3]
[404083207,1769797845563,-1600.0,0.00017829,2]
[404083208,1769797845573,-25000.0,0.0001783,3]
[404083209,1769797845583,-25000.0,0.00017838,3]
[404083210,1769797845592,-25000.0,0.00017847,3]
[404083211,1769797845602,-25000.0,0.00017856,3]
[404083212,1769797845611,-200.0,0.00017856,2]
[404083213,1769797845620,-500.0,0.00017863,2]
[404083214,1769797845629,-191.65534537,0.00017864,2]
[404083215,1769797845638,-500.0,0.00017864,2]
[404083216,1769797845648,-312.75116011,0.00017864,2]
[404083217,1769797845657,-166.70580827,0.00017864,2]
[404083218,1769797845667,-500.0,0.00017864,2]
[404083219,1769797845677,-241.79901139,0.00017864,2]
[404083220,1769797845687,-554.2912187,0.00017864,2]
[404083221,1769797845697,-492.53171351,0.00017864,2]
[404083222,1769797845707,-425.37073436,0.00017864,2]
[404083223,1769797845717,-280.25462776,0.00017864,2]
[404083224,1769797845727,-25000.0,0.00017865,3]
[404083225,1769797845738,-367.51,0.0001787,2]
[404083226,1769797845748,-151.39971089,0.00017873,2]
[404083227,1769797845758,-25000.0,0.00017874,3]
[404083228,1769797845768,-500.0,0.0001788,2]
[404083229,1769797845777,-500.0,0.0001788,2]
[404083230,1769797845787,-500.0,0.0001788,2]
[404083231,1769797845797,-25000.0,0.00017882,3]
[404083232,1769797845807,-500.0,0.0001789,2]
[404083233,1769797845818,-500.0,0.0001789,2]
[404083234,1769797845831,-500.0,0.0001789,2]
[404083235,1769797845841,-500.0,0.0001789,2]
[404083236,1769797845851,-500.0,0.0001789,2]
[404083237,1769797845862,-500.0,0.0001789,2]
[404083238,1769797845871,-500.0,0.0001789,2]
[404083239,1769797845881,-500.0,0.0001789,2]
[404083240,1769797845890,-370.45918944,0.0001789,2]
[404083241,1769797845902,-500.0,0.0001789,2]
[404083242,1769797845912,-326.23818299,0.0001789,2]
[404083243,1769797845921,-500.0,0.0001789,2]
[404083244,1769797845931,-500.0,0.0001789,2]
[404083245,1769797845941,-502.11575154,0.0001789,2]
[404083246,1769797845950,-500.0,0.0001789,2]
[404083247,1769797845960,-500.0,0.0001789,2]
[404083248,1769797845969,-500.0,0.0001789,2]
[404083249,1769797845979,-500.0,0.0001789,2]
[404083250,1769797845989,-500.0,0.0001789,2]
[404083251,1769797845999,-500.0,0.0001789,2]
[404083252,1769797846008,-500.0,0.0001789,2]
[404083253,1769797846017,-500.0,0.0001789,2]
[404083254,1769797846028,-519.46286686,0.0001789,2]
[404083255,1769797846038,-500.0,0.0001789,2]
[404083256,1769797846049,-500.0,0.0001789,2]
[404083257,1769797846059,-500.0,0.0001789,2]
[404083258,1769797846068,-500.0,0.0001789,2]
[404083259,1769797846079,-500.0,0.0001789,2]
[404083260,1769797846089,-500.0,0.0001789,2]
[404083261,1769797846100,-326.5559361,0.0001789,2]
[404083262,1769797846110,-6717.8852416,0.00017891,2]
[404083263,1769797846120,-4278.0,0.00017891,2]
[404083264,1769797846130,-25000.0,0.00017891,3]
[404083265,1769797846140,-355.0,0.00017894,2]
[404083266,1769797846149,-19277.62638897,0.000179,3]
[404083267,1769797846159,-10624.4896,0.000179,2]
[404083268,1769797846169,-10000.0,0.000179,2]
[404083269,1769797846180,-784.55885967,0.000179,2]
[404083270,1769797846190,-25000.0,0.000179,3]
[404083271,1769797846200,-16649.02521501,0.000179,2]
[404083272,1769797846210,-1483.00304431,0.000179,2]
[404083273,1769797846220,-17403.2546991,0.000179,2]
[404083274,1769797846230,-12562.08924235,0.000179,2]
[404083275,1769797846241,-331.01914912,0.000179,3]
[404083276,1769797846251,-15190.09639209,0.000179,2]
[404083277,1769797846261,-500.0,0.00017918,2]
[404083278,1769797846271,-3292.0,0.00017921,2]
[404083279,1769797846282,-1000.0,0.00017931,2]
[404083280,1769797846292,-500.0,0.00017955,2]
[404083281,1769797846302,-500.0,0.00017972,2]
[404083282,1769797846312,-326.00819699,0.00017972,2]
[404083283,1769797846321,-500.0,0.00017972,2]
[404083284,1769797846331,-500.0,0.00017972,2]
[404083285,1769797846340,-500.0,0.00017972,2]
[404083286,1769797846350,-500.0,0.00017972,2]